fUSD/lending_fUSD_20260121
["ID","MTS","AMOUNT","RATE_DAILY","PERIOD"]
[402920141,1768987646781,-50000.0,0.0004298,48]
[402920142,1768987646832,-50000.0,0.0004298,49]
[402920143,1768987646884,-50000.0,0.0004298,42]
[402920144,1768987646933,-150.0,0.00042981,120]
[402920145,1768987646982,-68829.81009557,0.00042981,30]
[402920146,1768987647040,-500.0,0.00042983,120]
[402920147,1768987647093,-500.0,0.00042983,120]
[402920148,1768987647143,-1100.0,0.00042984,60]
[402920149,1768987647191,-797.0096669,0.00042984,120]
[402920150,1768987647240,-500.0,0.00042984,60]
[402920151,1768987647291,-612.13,0.00042986,30]
[402920152,1768987647339,-468.11,0.00042986,30]
[402920153,1768987647387,-150.0,0.00042986,30]
[402920154,1768987647434,-612.13,0.00042986,30]
[402920155,1768987647480,-468.11,0.00042986,30]
[402920156,1768987647525,-468.11,0.00042986,30]
[402920157,1768987647573,-468.11,0.00042986,30]
[402920158,1768987647618,-468.11,0.00042986,30]
[402920159,1768987647666,-468.11,0.00042986,30]
[402920160,1768987647711,-150.0,0.00042986,30]
[402920161,1768987647758,-150.0,0.00042986,30]
[402920162,1768987647805,-150.0,0.00042986,30]
[402920163,1768987647850,-463.04,0.00042986,30]
[402920164,1768987647895,-612.13,0.00042986,30]
[402920165,1768987647940,-171.83,0.00042986,30]
[402920166,1768987647986,-484.09,0.00042986,30]
[402920167,1768987648032,-150.0,0.00042986,30]
[402920168,1768987648078,-150.0,0.00042986,30]
[402920169,1768987648133,-150.0,0.00042986,30]
[402920170,1768987648183,-484.09,0.00042986,30]
[402920171,1768987648230,-612.13,0.00042986,30]
[402920172,1768987648278,-150.0,0.00042986,30]
[402920173,1768987648324,-20115.41174859,0.0004299,120]
[402920174,1768987648379,-1156.11152,0.00042991,120]
[402920175,1768987648434,-986.44055816,0.00042998,120]
[402920176,1768987648686,-5000.0,0.00042999,120]
[402920177,1768987648749,-50000.0,0.00043,43]
[402920178,1768987648806,-14762.17524969,0.00043,30]
[402920179,1768987648862,-200.0,0.00043,120]
[402920180,1768987648909,-225.0,0.00043,120]
[402920181,1768987648956,-5000.0,0.00043,30]
[402920182,1768987649003,-4115.9131883,0.00043,120]
[402920183,1768987649051,-23200.0,0.00043,30]
[402920184,1768987649100,-172.27,0.00043,30]
[402920185,1768987649151,-2772.5086027,0.00043,120]
[402920186,1768987649203,-195.29943786,0.00043,120]
[402920187,1768987649253,-1024.8413637,0.00043,120]
[402920188,1768987649302,-2000.0,0.00043,120]
[402920189,1768987649349,-1045.67138431,0.00043,120]
[402920190,1768987649396,-2598.0,0.00043,120]
[402920191,1768987649443,-194.0,0.00043,120]
[402920192,1768987649490,-25115.0,0.00043,120]
[402920193,1768987649537,-170.4,0.00043,120]
[402920194,1768987649583,-350.0,0.00043,120]
[402920195,1768987649629,-600.0,0.00043,60]
[402920196,1768987649674,-200.0,0.00043,60]
[402920197,1768987649719,-200.0,0.00043,60]
[402920198,1768987649765,-150.0,0.00043,60]
[402920199,1768987649810,-150.0,0.00043,60]
[402920200,1768987649868,-150.0,0.00043,60]
[402920201,1768987649913,-150.0,0.00043,60]
[402920202,1768987649960,-150.0,0.00043,60]
[402920203,1768987650021,-150.0,0.00043,60]
[402920204,1768987650070,-150.0,0.00043,60]
[402920205,1768987650126,-150.0,0.00043,60]
[402920206,1768987650194,-150.0,0.00043,120]
[402920208,1768987650244,-150.0,0.00043,120]
[402920210,1768987650292,-500.0,0.00043,120]
[402920212,1768987650340,-10000.0,0.00043,120]
[402920213,1768987650387,-1000.0,0.00043,120]
[402920214,1768987650435,-209.7759899,0.00043,120]
[402920215,1768987650481,-3000.0,0.00043,50]
[402920216,1768987650526,-2800.0,0.00043,120]
[402920217,1768987650573,-322.4501214,0.00043,120]
[402920218,1768987650620,-250.38,0.00043007,120]
[402920219,1768987650663,-500.0,0.00043013,30]
[402920220,1768987650709,-500.0,0.00043013,120]
[402920221,1768987650754,-500.75,0.00043013,120]
[402920222,1768987650801,-548.15408923,0.00043013,120]
[402920223,1768987650847,-500.0,0.00043013,120]
[402920224,1768987650894,-500.0,0.00043013,120]
[402920225,1768987650943,-500.0,0.00043013,120]
[402920226,1768987650992,-500.0,0.00043013,120]
[402920227,1768987651042,-500.0,0.00043013,120]
[402920228,1768987651093,-500.0,0.00043013,120]
[402920229,1768987651146,-500.0,0.00043013,120]
[402920230,1768987651198,-500.0,0.00043013,120]
[402920231,1768987651250,-500.0,0.00043013,120]
[402920232,1768987651302,-500.0,0.00043013,120]
[402920233,1768987651352,-500.0,0.00043013,120]
[402920234,1768987651402,-500.0,0.00043013,120]
[402920235,1768987651452,-611.38,0.00043013,120]
[402920236,1768987651503,-500.0,0.00043013,120]
[402920237,1768987651553,-863.09,0.00043013,120]
[402920238,1768987651604,-500.0,0.00043013,120]
[402920239,1768987651656,-500.0,0.00043013,60]
[402920240,1768987651707,-500.0,0.00043013,120]
[402920241,1768987651757,-500.0,0.00043013,120]
[402920242,1768987651807,-500.0,0.00043013,120]
[402920243,1768987651871,-500.0,0.00043013,120]
[402920244,1768987651925,-159.1557279,0.00043013,120]
[402920245,1768987651977,-500.0,0.00043013,120]
[402920246,1768987652027,-500.0,0.00043013,120]
[402920247,1768987652081,-500.0,0.00043013,120]
[402920248,1768987652142,-649.772349,0.00043013,120]
[402920249,1768987652196,-500.0,0.00043013,120]
[402920250,1768987652249,-500.0,0.00043013,120]
[402920251,1768987652301,-547.42341892,0.00043013,120]
[402920252,1768987652352,-500.0,0.00043013,120]
[402920253,1768987652404,-730.65,0.00043013,120]
[402920254,1768987652457,-500.0,0.00043013,120]
[402920255,1768987652508,-515.99968359,0.00043013,120]
[402920256,1768987652560,-500.0,0.00043013,120]
[402920257,1768987652609,-500.0,0.00043013,120]
[402920258,1768987652659,-500.0,0.00043013,120]
[402920259,1768987652713,-500.0,0.00043013,120]
[402920260,1768987652763,-729.02,0.00043013,120]
[402920261,1768987652814,-738.03,0.00043013,120]
[402920262,1768987652865,-500.0,0.00043013,120]
[402920263,1768987652917,-1655.51,0.00043013,120]
[402920264,1768987652969,-500.0,0.00043013,120]
[402920265,1768987653024,-500.0,0.00043013,120]
[402920266,1768987653077,-500.0,0.00043013,120]
[402920267,1768987653135,-500.0,0.00043013,120]
[402920268,1768987653193,-500.0,0.00043013,120]
[402920269,1768987653251,-500.0,0.00043013,120]
[402920270,1768987653310,-928.92,0.00043013,120]
[402920271,1768987653371,-548.99,0.00043013,120]
[402920272,1768987653426,-500.0,0.00043013,120]
[402920273,1768987653810,-500.0,0.00043013,120]
[402920274,1768987653868,-500.0,0.00043013,120]
[402920275,1768987653927,-720.12,0.00043013,120]
[402920276,1768987653984,-500.0,0.00043013,120]
[402920277,1768987654038,-185.84663106,0.00043013,120]
[402920278,1768987654094,-500.0,0.00043013,120]
[402920279,1768987654161,-500.0,0.00043013,120]
[402920280,1768987654221,-500.0,0.00043013,120]
[402920281,1768987654280,-500.0,0.00043013,120]
[402920282,1768987654336,-500.0,0.00043013,120]
[402920283,1768987654405,-500.0,0.00043013,120]
[402920284,1768987654478,-677.69,0.00043013,120]
[402920285,1768987654546,-567.28,0.00043013,120]
[402920286,1768987654612,-500.0,0.00043013,120]
[402920287,1768987654679,-553.98,0.00043013,45]
[402920288,1768987654738,-500.0,0.00043013,120]
[402920289,1768987654800,-500.0,0.00043013,120]
[402920290,1768987654859,-500.0,0.00043013,120]
[402920291,1768987654916,-500.0,0.00043013,120]
[402920292,1768987654974,-500.0,0.00043013,120]
[402920293,1768987655033,-500.0,0.00043013,120]
[402920294,1768987655102,-500.0,0.00043013,120]
[402920295,1768987655173,-1023.9,0.00043013,120]
[402920296,1768987655240,-500.0,0.00043013,120]
[402920297,1768987655301,-545.88,0.00043013,30]
[402920298,1768987655385,-500.0,0.00043013,120]
[402920299,1768987655455,-437.87899586,0.00043013,30]
[402920300,1768987655518,-1009.37,0.00043013,120]
[402920301,1768987655581,-500.0,0.00043013,120]
[402920302,1768987655641,-807.88,0.00043013,120]
[402920303,1768987655699,-866.91,0.00043013,120]
[402920304,1768987655759,-500.0,0.00043013,120]
[402920305,1768987655819,-537.98,0.00043013,120]
[402920306,1768987655880,-500.0,0.00043013,120]
[402920307,1768987655940,-612.25,0.00043013,120]
[402920308,1768987655999,-500.0,0.00043013,120]
[402920309,1768987656058,-500.0,0.00043013,120]
[402920310,1768987656118,-500.0,0.00043013,120]
[402920311,1768987656186,-500.0,0.00043013,120]
[402920312,1768987656245,-594.51,0.00043013,120]
[402920313,1768987656303,-500.0,0.00043013,120]
[402920314,1768987656363,-361.51262193,0.00043013,120]
[402920315,1768987656422,-500.0,0.00043013,120]
[402920316,1768987656480,-500.0,0.00043013,120]
[402920317,1768987656539,-500.0,0.00043013,120]
[402920318,1768987656601,-613.42,0.00043013,120]
[402920319,1768987656662,-500.0,0.00043013,120]
[402920320,1768987656720,-674.99,0.00043013,120]
[402920321,1768987656779,-500.0,0.00043013,120]
[402920322,1768987656838,-500.0,0.00043013,120]
[402920323,1768987656897,-500.0,0.00043013,120]
[402920324,1768987656969,-617.98,0.00043013,120]
[402920325,1768987657041,-500.0,0.00043013,120]
[402920326,1768987657113,-500.0,0.00043013,120]
[402920327,1768987657186,-500.0,0.00043013,120]
[402920328,1768987657264,-500.0,0.00043013,120]
[402920329,1768987657338,-1026.85,0.00043013,120]
[402920330,1768987657411,-500.0,0.00043013,120]
[402920331,1768987657484,-500.0,0.00043013,60]
[402920332,1768987657548,-728.23,0.00043013,120]
[402920333,1768987657608,-500.0,0.00043013,120]
[402920334,1768987657683,-500.0,0.00043013,120]
[402920335,1768987657757,-500.0,0.00043013,120]
[402920336,1768987657831,-500.0,0.00043013,120]
[402920337,1768987657894,-794.19,0.00043013,120]
[402920338,1768987657957,-510.37436463,0.00043013,120]
[402920339,1768987658023,-500.0,0.00043013,120]
[402920340,1768987658101,-500.0,0.00043013,120]
[402920341,1768987658180,-4166.66,0.00043013,120]
[402920342,1768987658255,-746.35,0.00043013,120]
[402920343,1768987658329,-1172.0,0.00043013,120]
[402920344,1768987658408,-500.0,0.00043013,120]
[402920345,1768987658482,-500.0,0.00043013,120]
[402920346,1768987658543,-500.0,0.00043013,120]
[402920347,1768987658600,-500.0,0.00043013,120]
[402920348,1768987658660,-664.11,0.00043013,120]
[402920349,1768987658728,-500.0,0.00043013,120]
[402920350,1768987658796,-500.0,0.00043013,120]
[402920351,1768987658859,-500.0,0.00043013,120]
[402920352,1768987658917,-500.0,0.00043013,120]
[402920353,1768987658977,-184.37228405,0.00043013,120]
[402920354,1768987659036,-500.0,0.00043013,120]
[402920355,1768987659099,-500.0,0.00043013,120]
[402920356,1768987659161,-500.0,0.00043013,120]
[402920357,1768987659225,-1120.51,0.00043013,120]
[402920358,1768987659286,-500.0,0.00043013,120]
[402920359,1768987659346,-580.95,0.00043013,120]
[402920360,1768987659421,-588.65,0.00043013,120]
[402920361,1768987659489,-500.0,0.00043013,120]
[402920362,1768987659549,-885.84,0.00043013,120]
[402920363,1768987659620,-500.0,0.00043013,120]
[402920364,1768987659689,-500.0,0.00043013,60]
[402920365,1768987659753,-500.0,0.00043013,120]
[402920366,1768987659829,-500.0,0.00043013,120]
[402920367,1768987659898,-500.0,0.00043013,120]
[402920368,1768987660178,-500.0,0.00043013,120]
[402920369,1768987660239,-500.0,0.00043013,120]
[402920370,1768987660312,-691.81,0.00043013,120]
[402920371,1768987660374,-500.0,0.00043013,120]
[402920372,1768987660434,-557.34595936,0.00043013,120]
[402920373,1768987660495,-756.07,0.00043013,120]
[402920374,1768987660555,-500.0,0.00043013,120]
[402920375,1768987660614,-534.62,0.00043013,120]
[402920376,1768987660672,-500.0,0.00043013,120]
[402920377,1768987660742,-500.0,0.00043013,120]
[402920378,1768987660810,-500.0,0.00043013,120]
[402920379,1768987660879,-500.0,0.00043013,120]
[402920380,1768987660946,-500.0,0.00043013,120]
[402920381,1768987661011,-780.78,0.00043013,120]
[402920382,1768987661080,-500.0,0.00043013,120]
[402920383,1768987661147,-500.0,0.00043013,120]
[402920384,1768987661208,-500.0,0.00043013,120]
[402920385,1768987661266,-500.0,0.00043013,120]
[402920386,1768987661325,-854.36,0.00043013,120]
[402920387,1768987661384,-500.0,0.00043013,120]
[402920388,1768987661447,-500.0,0.00043013,120]
[402920389,1768987661504,-726.21,0.00043013,120]
[402920390,1768987661573,-500.0,0.00043013,120]
[402920391,1768987661629,-862.89,0.00043013,120]
[402920392,1768987661684,-500.0,0.00043013,120]
[402920393,1768987661740,-500.0,0.00043013,120]
[402920394,1768987661794,-500.0,0.00043013,120]
[402920395,1768987661848,-500.0,0.00043013,120]
[402920396,1768987661905,-500.0,0.00043013,120]
[402920397,1768987661960,-572.26,0.00043013,120]
[402920398,1768987662012,-500.0,0.00043013,120]
[402920399,1768987662071,-500.0,0.00043013,120]
[402920400,1768987662125,-500.0,0.00043013,120]
[402920401,1768987662182,-500.0,0.00043013,120]
[402920402,1768987662237,-500.0,0.00043013,120]
[402920403,1768987662292,-1126.09,0.00043013,120]
[402920404,1768987662347,-500.0,0.00043013,120]
[402920405,1768987662401,-757.16,0.00043013,120]
[402920406,1768987662452,-438.3244539,0.00043013,120]
[402920407,1768987662501,-500.0,0.00043013,120]
[402920408,1768987662552,-519.0549565,0.00043013,120]
[402920409,1768987662603,-500.0,0.00043013,120]
[402920410,1768987662653,-500.0,0.00043013,120]
[402920411,1768987662705,-500.0,0.00043013,120]
[402920412,1768987662755,-500.0,0.00043013,120]
[402920413,1768987662807,-1000.0,0.00043013,120]
[402920414,1768987662860,-500.0,0.00043013,120]
[402920415,1768987662911,-500.0,0.00043013,120]
[402920416,1768987662964,-500.0,0.00043013,120]
[402920417,1768987663014,-760.9,0.00043013,120]
[402920418,1768987663065,-500.0,0.00043013,120]
[402920419,1768987663116,-500.0,0.00043013,120]
[402920420,1768987663171,-668.11,0.00043013,120]
[402920421,1768987663223,-500.0,0.00043013,120]
[402920422,1768987663275,-500.0,0.00043013,120]
[402920423,1768987663330,-637.16,0.00043013,120]
[402920424,1768987663379,-505.66,0.00043013,120]
[402920425,1768987663427,-1065.16,0.00043013,120]
[402920426,1768987663476,-1064.67,0.00043013,120]
[402920427,1768987663524,-500.0,0.00043013,120]
[402920428,1768987663573,-871.03,0.00043013,120]
[402920429,1768987663622,-525.23,0.00043013,120]
[402920430,1768987663669,-500.0,0.00043013,120]
[402920431,1768987663717,-662.06,0.00043013,120]
[402920432,1768987663766,-1051.35,0.00043013,120]
[402920433,1768987663816,-1104.23,0.00043013,120]
[402920434,1768987663865,-411.72045391,0.00043013,120]
[402920435,1768987663911,-500.0,0.00043013,120]
[402920436,1768987663959,-500.0,0.00043013,120]
[402920437,1768987664007,-662.74,0.00043013,120]
[402920438,1768987664055,-543.88,0.00043013,120]
[402920439,1768987664108,-500.0,0.00043013,120]
[402920440,1768987664163,-592.98,0.00043013,120]
[402920441,1768987664213,-500.0,0.00043013,120]
[402920442,1768987664264,-732.36,0.00043013,120]
[402920443,1768987664314,-500.0,0.00043013,120]
[402920444,1768987664363,-500.0,0.00043013,120]
[402920445,1768987664414,-584.28,0.00043013,120]
[402920446,1768987664463,-500.0,0.00043013,120]
[402920447,1768987664515,-512.89,0.00043013,120]
[402920448,1768987664564,-594.65,0.00043013,120]
[402920449,1768987664615,-500.0,0.00043013,120]
[402920450,1768987664664,-500.0,0.00043013,120]
[402920451,1768987664715,-500.0,0.00043013,120]
[402920452,1768987664765,-500.0,0.00043013,120]
[402920453,1768987664816,-500.0,0.00043013,120]
[402920454,1768987664866,-500.0,0.00043013,120]
[402920455,1768987664915,-500.0,0.00043013,120]
[402920456,1768987664968,-376.64545743,0.00043013,120]
[402920457,1768987665022,-726.3,0.00043013,120]
[402920458,1768987665074,-500.0,0.00043013,120]
[402920459,1768987665125,-669.38,0.00043013,120]
[402920460,1768987665178,-500.0,0.00043013,120]
[402920461,1768987665229,-500.0,0.00043013,120]
[402920462,1768987665482,-500.0,0.00043013,120]
[402920463,1768987665532,-501.79,0.00043013,120]
[402920464,1768987665580,-500.0,0.00043013,120]
[402920465,1768987665626,-500.0,0.00043013,120]
[402920466,1768987665673,-633.52,0.00043013,120]
[402920467,1768987665719,-581.60379302,0.00043013,120]
[402920468,1768987665767,-885.04,0.00043013,120]
[402920469,1768987665816,-500.0,0.00043013,120]
[402920470,1768987665867,-500.0,0.00043013,120]
[402920471,1768987665916,-500.0,0.00043013,120]
[402920472,1768987665966,-594.03,0.00043013,120]
[402920473,1768987666019,-582.17,0.00043013,120]
[402920474,1768987666069,-572.80279095,0.00043013,120]
[402920475,1768987666120,-500.0,0.00043013,120]
[402920476,1768987666171,-500.0,0.00043013,120]
[402920477,1768987666221,-500.0,0.00043013,120]
[402920478,1768987666272,-500.0,0.00043013,120]
[402920479,1768987666323,-500.0,0.00043013,120]
[402920480,1768987666373,-500.0,0.00043013,120]
[402920481,1768987666422,-500.0,0.00043013,120]
[402920482,1768987666472,-723.02,0.00043013,120]
[402920483,1768987666521,-500.0,0.00043013,120]
[402920484,1768987666570,-500.0,0.00043013,120]
[402920485,1768987666619,-500.0,0.00043013,120]
[402920486,1768987666667,-679.71,0.00043013,120]
[402920487,1768987666717,-500.0,0.00043013,120]
[402920488,1768987666771,-714.9,0.00043013,120]
[402920489,1768987666827,-500.0,0.00043013,120]
[402920490,1768987666879,-589.5,0.00043013,120]
[402920491,1768987666929,-500.0,0.00043013,120]
[402920492,1768987666978,-500.0,0.00043013,120]
[402920493,1768987667029,-500.0,0.00043013,120]
[402920494,1768987667078,-500.0,0.00043013,120]
[402920495,1768987667127,-1331.3,0.00043013,120]
[402920496,1768987667183,-606.96,0.00043013,120]
[402920497,1768987667237,-515.74,0.00043013,120]
[402920498,1768987667290,-632.04,0.00043013,120]
[402920499,1768987667339,-513.47,0.00043013,120]
[402920500,1768987667390,-559.52,0.00043013,120]
[402920501,1768987667442,-500.0,0.00043013,120]
[402920502,1768987667495,-752.51,0.00043013,120]
[402920503,1768987667546,-500.0,0.00043013,120]
[402920504,1768987667603,-500.0,0.00043013,120]
[402920505,1768987667651,-500.0,0.00043013,120]
[402920506,1768987667700,-500.0,0.00043013,120]
[402920507,1768987667751,-500.0,0.00043013,120]
[402920508,1768987667805,-500.0,0.00043013,120]
[402920509,1768987667855,-669.57,0.00043013,120]
[402920510,1768987667905,-500.0,0.00043013,60]
[402920511,1768987667958,-500.0,0.00043013,60]
[402920512,1768987668013,-500.0,0.00043013,120]
[402920513,1768987668065,-500.0,0.00043013,120]
[402920514,1768987668118,-500.0,0.00043013,120]
[402920515,1768987668170,-500.0,0.00043013,120]
[402920516,1768987668222,-1155.7,0.00043013,120]
[402920517,1768987668271,-1350.75,0.00043013,120]
[402920518,1768987668320,-339.84208789,0.00043013,120]
[402920519,1768987668376,-500.0,0.00043013,120]
[402920520,1768987668424,-529.76,0.00043013,120]
[402920521,1768987668472,-500.0,0.00043013,120]
[402920522,1768987668521,-766.15,0.00043013,120]
[402920523,1768987668569,-853.58,0.00043013,120]
[402920524,1768987668619,-841.94,0.00043013,120]
[402920525,1768987668667,-519.43,0.00043013,120]
[402920526,1768987668715,-500.0,0.00043013,120]
[402920527,1768987668767,-500.0,0.00043013,120]
[402920528,1768987668829,-500.0,0.00043013,120]
[402920529,1768987668879,-622.11,0.00043013,120]
[402920530,1768987668936,-695.08,0.00043013,120]
[402920531,1768987668988,-500.0,0.00043013,120]
[402920532,1768987669044,-586.24,0.00043013,120]
[402920533,1768987669095,-535.51,0.00043013,120]
[402920534,1768987669153,-500.0,0.00043013,90]
[402920535,1768987669208,-500.0,0.00043013,120]
[402920536,1768987669261,-500.0,0.00043013,120]
[402920537,1768987669314,-644.47,0.00043013,120]
[402920538,1768987669365,-500.0,0.00043013,120]
[402920539,1768987669419,-500.0,0.00043013,120]
[402920540,1768987669470,-500.0,0.00043013,120]
[402920541,1768987669519,-500.0,0.00043013,120]
[402920542,1768987669567,-500.0,0.00043013,120]
[402920543,1768987669618,-500.0,0.00043013,120]
[402920544,1768987669667,-696.85,0.00043013,120]
[402920545,1768987669718,-500.0,0.00043013,120]
[402920546,1768987669767,-500.0,0.00043013,120]
[402920547,1768987669817,-623.64,0.00043013,120]
[402920548,1768987669868,-889.13,0.00043013,120]
[402920549,1768987669918,-439.64057397,0.00043013,120]
[402920550,1768987669968,-691.15,0.00043013,120]
[402920551,1768987670020,-500.0,0.00043013,120]
[402920552,1768987670080,-181.41537754,0.00043013,120]
[402920553,1768987670133,-500.0,0.00043013,120]
[402920554,1768987670186,-567.88,0.00043013,120]
[402920555,1768987670238,-655.24,0.00043013,120]
[402920556,1768987670291,-500.0,0.00043013,120]
[402920557,1768987670665,-500.0,0.00043013,120]
[402920558,1768987670716,-500.0,0.00043013,120]
[402920559,1768987670766,-500.0,0.00043013,120]
[402920560,1768987670815,-500.0,0.00043013,120]
[402920561,1768987670863,-645.41,0.00043013,120]
[402920562,1768987670913,-698.04,0.00043013,120]
[402920563,1768987670965,-545.16,0.00043013,120]
[402920564,1768987671017,-507.63,0.00043013,120]
[402920565,1768987671068,-500.0,0.00043013,120]
[402920566,1768987671122,-500.0,0.00043013,120]
[402920567,1768987671172,-500.0,0.00043013,120]
[402920568,1768987671229,-600.0,0.00043014,120]
[402920569,1768987671282,-205.55,0.00043014,120]
[402920570,1768987671333,-1999.0,0.00043014,30]
[402920571,1768987671383,-500.0,0.00043014,120]
[402920572,1768987671435,-500.0,0.00043069,120]
[402920573,1768987671487,-178.0,0.00043077,30]
[402920574,1768987671536,-298.55068098,0.00043078,30]
[402920575,1768987671585,-157.70344337,0.00043078,30]
[402920576,1768987671634,-204.67669333,0.00043078,30]
[402920577,1768987671683,-248.04561518,0.00043078,30]
[402920578,1768987671733,-247.73469576,0.00043078,30]
[402920579,1768987671783,-254.21898401,0.00043078,30]
[402920580,1768987671832,-288.92633196,0.00043078,30]
[402920581,1768987671880,-151.25826174,0.00043078,30]
[402920582,1768987671930,-211.16516309,0.00043078,30]
[402920583,1768987671980,-153.90616104,0.00043078,30]
[402920584,1768987672031,-1312.0,0.00043098,120]
[402920585,1768987672083,-1312.0,0.00043098,120]
[402920586,1768987672136,-1293.0,0.00043098,120]
[402920587,1768987672189,-1312.0,0.00043098,120]
[402920588,1768987672240,-1293.0,0.00043098,120]
[402920589,1768987672291,-1293.0,0.00043098,120]
[402920590,1768987672341,-1273.0,0.00043098,120]
[402920591,1768987672392,-1254.0,0.00043098,120]
[402920592,1768987672440,-1235.0,0.00043098,120]
[402920593,1768987672492,-1312.0,0.00043098,120]
[402920594,1768987672540,-1197.0,0.00043098,120]
[402920595,1768987672587,-1272.0,0.00043098,120]
[402920596,1768987672632,-1332.0,0.00043098,120]
[402920597,1768987672680,-1253.0,0.00043098,120]
[402920598,1768987672721,-1292.0,0.00043098,120]
[402920599,1768987672767,-1274.0,0.00043098,120]
[402920600,1768987672815,-1255.0,0.00043098,120]
[402920601,1768987672862,-1234.0,0.00043098,120]
[402920602,1768987672910,-1236.0,0.00043098,120]
[402920603,1768987672960,-1294.0,0.00043098,120]
[402920604,1768987673013,-1216.0,0.00043098,120]
[402920605,1768987673065,-1314.0,0.00043098,120]
[402920606,1768987673116,-1426.0,0.00043098,120]
[402920607,1768987673169,-1405.0,0.00043098,120]
[402920608,1768987673226,-1384.0,0.00043098,120]
[402920609,1768987673280,-1363.0,0.00043098,120]
[402920610,1768987673335,-1312.0,0.00043098,120]
[402920611,1768987673388,-1216.0,0.00043098,120]
[402920612,1768987673440,-1273.0,0.00043098,120]
[402920613,1768987673497,-1293.0,0.00043098,120]
[402920614,1768987673552,-1198.0,0.00043098,120]
[402920615,1768987673605,-1254.0,0.00043098,120]
[402920616,1768987673661,-1235.0,0.00043098,120]
[402920617,1768987673724,-1185.0,0.00043098,120]
[402920618,1768987673779,-1259.0,0.00043098,120]
[402920619,1768987673829,-1167.0,0.00043098,120]
[402920620,1768987673882,-1203.0,0.00043098,120]
[402920621,1768987673937,-1240.0,0.00043098,120]
[402920622,1768987673989,-1222.0,0.00043098,120]
[402920623,1768987674045,-1244.0,0.00043098,120]
[402920624,1768987674098,-1135.0,0.00043098,120]
[402920625,1768987674162,-1225.0,0.00043098,120]
[402920626,1768987674220,-1153.0,0.00043098,120]
[402920627,1768987674275,-1385.0,0.00043098,120]
[402920628,1768987674326,-1364.0,0.00043098,120]
[402920629,1768987674389,-1207.0,0.00043098,120]
[402920630,1768987674443,-1344.0,0.00043098,120]
[402920631,1768987674496,-1374.0,0.00043098,120]
[402920632,1768987674549,-1416.0,0.00043098,120]
[402920633,1768987674601,-1395.0,0.00043098,120]
[402920634,1768987674654,-1353.0,0.00043098,120]
[402920635,1768987674708,-1333.0,0.00043098,120]
[402920636,1768987674766,-708.11229868,0.000431,120]
[402920637,1768987674833,-291.3747974,0.000431,120]
[402920638,1768987674891,-250.38,0.00043107,120]
[402920639,1768987674945,-500.0,0.00043124,120]
[402920640,1768987674997,-1517.0,0.00043177,30]
[402920641,1768987675048,-500.0,0.00043178,120]
[402920642,1768987675098,-1156.11152,0.00043191,120]
[402920643,1768987675154,-250.38,0.00043207,120]